[Event "FIDE World Rapid Chess Championship 2021"]
[White "Shoker, Samy"]
[Black "Blohberger, Felix"]
[WhiteFideId "627143"]
[BlackFideId "1632051"]
[WhiteElo "2550"]
[BlackElo "2409"]
[Result "1-0"]
[Round "02"]
[TimeControl "900+10"]
[Date "2021.12.26"]
[WhiteClock "0:00:00"]
[BlackClock "0:15:09"]

1. Nf3 {[%clk 0:15:00]}  Nf6 {[%clk 0:15:00]} 2. g3 {[%clk 0:15:00]}  g6 {[%clk 0:15:00]} 3. Bg2 {[%clk 0:15:00]}  Bg7 {[%clk 0:15:00]} 4. O-O {[%clk 0:15:00]}  O-O {[%clk 0:15:00]} 5. d3 {[%clk 0:15:00]}  c5 {[%clk 0:15:00]} 6. c3 {[%clk 0:15:00]}  Nc6 {[%clk 0:15:00]} 7. a3 {[%clk 0:15:00]}  d6 {[%clk 0:15:00]} 8. b4 {[%clk 0:15:00]}  e5 {[%clk 0:15:00]} 9. Nbd2 {[%clk 0:15:00]}  Rb8 {[%clk 0:15:00]} 10. Rb1 {[%clk 0:15:00]}  h6 {[%clk 0:15:00]} 11. Bb2 {[%clk 0:15:00]}  Be6 {[%clk 0:15:00]} 12. b5 {[%clk 0:15:00]}  Ne7 {[%clk 0:15:00]} 13. e4 {[%clk 0:15:00]}  Qd7 {[%clk 0:15:00]} 14. a4 {[%clk 0:15:00]}  a6 {[%clk 0:15:00]} 15. d4 {[%clk 0:15:00]}  axb5 {[%clk 0:15:00]} 16. dxe5 {[%clk 0:09:58]}  dxe5 {[%clk 0:15:10]} 17. axb5 {[%clk 0:00:00]}  Qc7 {[%clk 0:15:00]} 18. c4 {[%clk 0:00:00]}  Nd7 {[%clk 0:15:00]} 19. Bc3 {[%clk 0:00:00]}  Ra8 {[%clk 0:15:00]} 20. Ra1 {[%clk 0:00:00]}  Rfd8 {[%clk 0:15:00]} 21. Qe2 {[%clk 0:00:00]}  Nf8 {[%clk 0:15:00]} 22. Nb3 {[%clk 0:00:00]}  b6 {[%clk 0:15:00]} 23. Nfd2 {[%clk 0:00:00]}  Rxa1 {[%clk 0:15:00]} 24. Nxa1 {[%clk 0:00:00]}  Qd6 {[%clk 0:15:00]} 25. Rc1 {[%clk 0:00:00]}  Bc8 {[%clk 0:15:00]} 26. Nc2 {[%clk 0:00:00]}  Ne6 {[%clk 0:15:00]} 27. Ne3 {[%clk 0:00:00]}  Nd4 {[%clk 0:15:00]} 28. Qd1 {[%clk 0:00:00]}  h5 {[%clk 0:15:00]} 29. Nd5 {[%clk 0:00:00]}  Bh6 {[%clk 0:15:00]} 30. Ra1 {[%clk 0:00:00]}  Bg4 {[%clk 0:15:00]} 31. f3 {[%clk 0:00:00]}  Bc8 {[%clk 0:15:00]} 32. Ra7 {[%clk 0:00:00]}  Rd7 {[%clk 0:15:00]} 33. Ra8 {[%clk 0:00:00]}  Rd8 {[%clk 0:15:00]} 34. Bf1 {[%clk 0:00:00]}  Kh7 {[%clk 0:15:00]} 35. Nb3 {[%clk 0:00:00]}  Nxd5 {[%clk 0:15:00]} 36. cxd5 {[%clk 0:00:00]}  Be3+ {[%clk 0:15:00]} 37. Kh1 {[%clk 0:00:00]}  Bb7 {[%clk 0:15:00]} 38. Ra7 {[%clk 0:00:00]}  Rd7 {[%clk 0:15:00]} 39. Nd2 {[%clk 0:00:00]}  Bxd2 {[%clk 0:15:00]} 40. Bxd2 {[%clk 0:00:00]}  Qb8 {[%clk 0:15:00]} 41. Ra3 {[%clk 0:00:00]}  Qd8 {[%clk 0:15:00]} 42. h4 {[%clk 0:00:00]}  Rd6 {[%clk 0:15:00]} 43. Kg2 {[%clk 0:00:00]}  Bc8 {[%clk 0:15:00]} 44. Ra7 {[%clk 0:00:00]}  Rd7 {[%clk 0:15:00]} 45. Ra8 {[%clk 0:00:00]}  Rd6 {[%clk 0:15:00]} 46. Kf2 {[%clk 0:00:00]}  Qc7 {[%clk 0:15:00]} 47. Qa4 {[%clk 0:00:00]}  Rf6 {[%clk 0:15:00]} 48. Bg2 {[%clk 0:00:00]}  Nxf3 {[%clk 0:15:00]} 49. Bxf3 {[%clk 0:00:00]}  Bg4 {[%clk 0:15:00]} 50. Bg5 {[%clk 0:00:00]}  Rxf3+ {[%clk 0:15:00]} 51. Kg2 {[%clk 0:00:00]}  c4 {[%clk 0:15:00]} 52. Qb4 {[%clk 0:00:00]}  Qc5 {[%clk 0:15:00]} 53. Qxc5 {[%clk 0:00:00]}  bxc5 {[%clk 0:15:00]} 54. b6 {[%clk 0:00:00]}  Rb3 {[%clk 0:15:00]} 55. Bf6 {[%clk 0:00:00]}  g5 {[%clk 0:15:00]} 56. Rh8+ {[%clk 0:00:00]}  Kg6 {[%clk 0:15:00]} 57. hxg5 {[%clk 0:00:00]}  Bf3+ {[%clk 0:15:00]} 58. Kf2 {[%clk 0:00:00]}  Bxe4 {[%clk 0:15:00]} 59. d6 {[%clk 0:00:00]}  Rd3 {[%clk 0:15:00]} 60. Bxe5 {[%clk 0:00:00]}  Kf5 {[%clk 0:15:00]} 61. Bf4 {[%clk 0:00:00]}  c3 {[%clk 0:15:00]} 62. Rc8 {[%clk 0:00:00]}  Kg4 {[%clk 0:15:00]} 63. Rxc5 {[%clk 0:00:00]}  h4 {[%clk 0:15:00]} 64. Rc4 {[%clk 0:00:00]}  Rf3+ {[%clk 0:15:00]} 65. Ke1 {[%clk 0:00:00]}  hxg3 {[%clk 0:15:00]} 66. Bxg3 {[%clk 0:00:00]}  Re3+ {[%clk 0:15:09]} 67. Kf2 {[%clk 0:00:00]}  Rf3+ {[%clk 0:15:09]} 68. Ke2 {[%clk 0:00:00]}  Kxg3 {[%clk 0:15:09]} 1-0


[Site "http://www.Chess.com"]

[Event "FIDE World Rapid Chess Championship 2021"]
[White "Kolosowski, Mateusz"]
[Black "Piorun, Kacper"]
[WhiteFideId "1129708"]
[BlackFideId "1130420"]
[WhiteElo "2371"]
[BlackElo "2547"]
[Result "0-1"]
[Round "02"]
[TimeControl "900+10"]
[Date "2021.12.26"]
[WhiteClock "0:00:40"]
[BlackClock "0:01:05"]

1. d4 {[%clk 0:15:00]}  Nf6 {[%clk 0:15:00]} 2. Nf3 {[%clk 0:15:00]}  e6 {[%clk 0:15:00]} 3. e3 {[%clk 0:15:00]}  b6 {[%clk 0:15:00]} 4. Bd3 {[%clk 0:15:00]}  Bb7 {[%clk 0:15:00]} 5. O-O {[%clk 0:15:00]}  c5 {[%clk 0:15:00]} 6. c4 {[%clk 0:15:00]}  Be7 {[%clk 0:15:00]} 7. Nc3 {[%clk 0:15:00]}  cxd4 {[%clk 0:15:00]} 8. exd4 {[%clk 0:15:00]}  d6 {[%clk 0:15:00]} 9. d5 {[%clk 0:15:00]}  e5 {[%clk 0:15:00]} 10. Qc2 {[%clk 0:15:00]}  Nbd7 {[%clk 0:15:00]} 11. Be3 {[%clk 0:15:00]}  O-O {[%clk 0:15:00]} 12. b4 {[%clk 0:15:00]}  g6 {[%clk 0:15:00]} 13. h3 {[%clk 0:15:00]}  Nh5 {[%clk 0:15:00]} 14. Bh6 {[%clk 0:15:00]}  Ng7 {[%clk 0:15:00]} 15. Nd2 {[%clk 0:15:00]}  f5 {[%clk 0:15:00]} 16. f4 {[%clk 0:15:00]}  Bf6 {[%clk 0:15:00]} 17. Rad1 {[%clk 0:15:00]}  Re8 {[%clk 0:15:00]} 18. Nb5 {[%clk 0:15:00]}  Qb8 {[%clk 0:15:00]} 19. g4 {[%clk 0:15:00]}  a6 {[%clk 0:15:00]} 20. Nc3 {[%clk 0:15:00]}  e4 {[%clk 0:15:00]} 21. Be2 {[%clk 0:15:00]}  b5 {[%clk 0:15:00]} 22. g5 {[%clk 0:15:00]}  Bd4+ {[%clk 0:15:00]} 23. Kg2 {[%clk 0:15:00]}  Qa7 {[%clk 0:07:32]} 24. Nb3 {[%clk 0:04:28]}  Be3 {[%clk 0:07:32]} 25. Na5 {[%clk 0:04:28]}  Rac8 {[%clk 0:05:51]} 26. Nc6 {[%clk 0:03:43]}  Bxc6 {[%clk 0:05:51]} 27. dxc6 {[%clk 0:03:43]}  Nf8 {[%clk 0:05:51]} 28. cxb5 {[%clk 0:03:43]}  Nfe6 {[%clk 0:05:51]} 29. Nd5 {[%clk 0:03:43]}  axb5 {[%clk 0:04:27]} 30. Bxb5 {[%clk 0:03:28]}  Nh5 {[%clk 0:04:27]} 31. Qb3 {[%clk 0:03:28]}  Nd4 {[%clk 0:04:27]} 32. Qxe3 {[%clk 0:03:07]}  Nxb5 {[%clk 0:02:32]} 33. Qb3 {[%clk 0:03:07]}  Qf7 {[%clk 0:02:32]} 34. a4 {[%clk 0:03:07]}  e3 {[%clk 0:02:32]} 35. Rd3 {[%clk 0:03:07]}  e2 {[%clk 0:02:46]} 36. Re1 {[%clk 0:01:36]}  Nc7 {[%clk 0:02:46]} 37. Kf2 {[%clk 0:01:36]}  Nxd5 {[%clk 0:02:46]} 38. Qxd5 {[%clk 0:01:36]}  Nxf4 {[%clk 0:02:46]} 39. Qxf7+ {[%clk 0:01:36]}  Kxf7 {[%clk 0:02:46]} 40. Rxd6 {[%clk 0:01:36]}  Rxc6 {[%clk 0:01:14]} 41. Rd7+ {[%clk 0:01:22]}  Re7 {[%clk 0:01:14]} 42. Rxe7+ {[%clk 0:01:22]}  Kxe7 {[%clk 0:01:14]} 43. Kf3 {[%clk 0:01:22]}  Rc4 {[%clk 0:01:14]} 44. a5 {[%clk 0:01:22]}  Rxb4 {[%clk 0:01:14]} 45. a6 {[%clk 0:01:22]}  Ra4 {[%clk 0:01:14]} 46. a7 {[%clk 0:01:22]}  Ne6 {[%clk 0:01:14]} 47. Rxe2 {[%clk 0:00:40]}  Rxa7 {[%clk 0:01:05]} 48. Bg7 {[%clk 0:00:40]}  Ra3+ {[%clk 0:01:05]} 49. Kg2 {[%clk 0:00:40]}  Kf7 {[%clk 0:01:05]} 0-1


[Site "http://www.Chess.com"]

[Event "FIDE World Rapid Chess Championship 2021"]
[White "Indjic, Aleksandar"]
[Black "Mikhalevski, Victor"]
[WhiteFideId "911925"]
[BlackFideId "2801914"]
[WhiteElo "2544"]
[BlackElo "2366"]
[Result "1/2-1/2"]
[Round "02"]
[TimeControl "900+10"]
[Date "2021.12.26"]
[WhiteClock "0:03:34"]
[BlackClock "0:03:57"]

1. c4 {[%clk 0:15:00]}  Nf6 {[%clk 0:15:00]} 2. Nc3 {[%clk 0:15:00]}  d5 {[%clk 0:15:00]} 3. cxd5 {[%clk 0:15:00]}  Nxd5 {[%clk 0:15:00]} 4. g3 {[%clk 0:15:00]}  e5 {[%clk 0:15:00]} 5. Bg2 {[%clk 0:15:00]}  Nb6 {[%clk 0:15:00]} 6. d3 {[%clk 0:15:00]}  Be7 {[%clk 0:15:00]} 7. Be3 {[%clk 0:15:00]}  O-O {[%clk 0:15:00]} 8. Rc1 {[%clk 0:15:00]}  Nc6 {[%clk 0:15:00]} 9. Bxc6 {[%clk 0:15:00]}  bxc6 {[%clk 0:15:00]} 10. Nf3 {[%clk 0:15:00]}  f6 {[%clk 0:15:00]} 11. Ne4 {[%clk 0:15:00]}  Be6 {[%clk 0:15:00]} 12. b3 {[%clk 0:15:00]}  f5 {[%clk 0:15:00]} 13. Ned2 {[%clk 0:15:00]}  Bd5 {[%clk 0:15:00]} 14. O-O {[%clk 0:15:00]}  Bd6 {[%clk 0:15:00]} 15. a4 {[%clk 0:15:00]}  Qf6 {[%clk 0:15:00]} 16. Ne1 {[%clk 0:15:00]}  f4 {[%clk 0:15:00]} 17. Bc5 {[%clk 0:15:00]}  Qh6 {[%clk 0:15:00]} 18. Ne4 {[%clk 0:15:00]}  fxg3 {[%clk 0:15:00]} 19. hxg3 {[%clk 0:15:00]}  Rf5 {[%clk 0:15:00]} 20. Kg2 {[%clk 0:15:00]}  Rh5 {[%clk 0:15:00]} 21. Nf3 {[%clk 0:15:00]}  Qe6 {[%clk 0:15:00]} 22. Rh1 {[%clk 0:15:00]}  Bxb3 {[%clk 0:15:00]} 23. Qe1 {[%clk 0:08:01]}  Rxh1 {[%clk 0:04:14]} 24. Qxh1 {[%clk 0:08:01]}  Bd5 {[%clk 0:04:14]} 25. Neg5 {[%clk 0:08:01]}  Bxf3+ {[%clk 0:04:03]} 26. Nxf3 {[%clk 0:05:52]}  Qd5 {[%clk 0:04:03]} 27. Be3 {[%clk 0:05:52]}  e4 {[%clk 0:04:03]} 28. dxe4 {[%clk 0:05:35]}  Qxe4 {[%clk 0:01:55]} 29. a5 {[%clk 0:05:35]}  Nd5 {[%clk 0:01:55]} 30. Bd4 {[%clk 0:05:35]}  Rf8 {[%clk 0:01:55]} 31. Qd1 {[%clk 0:05:35]}  Qg4 {[%clk 0:01:42]} 32. Bxa7 {[%clk 0:03:53]}  h5 {[%clk 0:01:42]} 33. Rxc6 {[%clk 0:02:53]}  Nf4+ {[%clk 0:00:55]} 34. Kg1 {[%clk 0:02:53]}  h4 {[%clk 0:00:55]} 35. Rxd6 {[%clk 0:02:53]}  cxd6 {[%clk 0:00:55]} 36. Nxh4 {[%clk 0:02:53]}  Qxe2 {[%clk 0:01:02]} 37. Qxe2 {[%clk 0:00:35]}  Nxe2+ {[%clk 0:01:02]} 38. Kg2 {[%clk 0:00:35]}  Nc3 {[%clk 0:01:02]} 39. g4 {[%clk 0:00:35]}  Rf4 {[%clk 0:01:02]} 40. f3 {[%clk 0:00:35]}  Ra4 {[%clk 0:01:02]} 41. Bb6 {[%clk 0:00:35]}  Ra2+ {[%clk 0:01:02]} 42. Kf1 {[%clk 0:00:35]}  Kf7 {[%clk 0:01:02]} 43. Nf5 {[%clk 0:00:35]}  d5 {[%clk 0:01:02]} 44. Bd4 {[%clk 0:00:35]}  Nb5 {[%clk 0:00:31]} 45. Bxg7 {[%clk 0:00:33]}  Rxa5 {[%clk 0:00:31]} 46. Kf2 {[%clk 0:00:33]}  Nd6 {[%clk 0:00:31]} 47. Nxd6+ {[%clk 0:00:33]}  Kxg7 {[%clk 0:00:31]} 48. Ke3 {[%clk 0:00:33]}  Kf6 {[%clk 0:00:31]} 49. Nf5 {[%clk 0:00:33]}  Ra4 {[%clk 0:00:31]} 50. Nd4 {[%clk 0:00:33]}  Rc4 {[%clk 0:00:31]} 51. f4 {[%clk 0:00:33]}  Rc3+ {[%clk 0:00:31]} 52. Ke2 {[%clk 0:00:33]}  Rg3 {[%clk 0:00:31]} 53. g5+ {[%clk 0:00:33]}  Kg6 {[%clk 0:00:31]} 54. Kd2 {[%clk 0:00:33]}  Kh5 {[%clk 0:00:31]} 55. Nf5 {[%clk 0:00:33]}  Rf3 {[%clk 0:01:12]} 56. Ne7 {[%clk 0:00:38]}  Rxf4 {[%clk 0:01:12]} 57. Kd3 {[%clk 0:00:38]}  d4 {[%clk 0:01:12]} 58. g6 {[%clk 0:00:38]}  Kh6 {[%clk 0:01:12]} 59. Nc6 {[%clk 0:00:38]}  Kxg6 {[%clk 0:01:12]} 60. Nxd4 {[%clk 0:00:38]}  Kf6 {[%clk 0:01:12]} 61. Ke3 {[%clk 0:00:38]}  Rh4 {[%clk 0:01:12]} 62. Nf3 {[%clk 0:00:38]}  Ra4 {[%clk 0:01:12]} 63. Nd4 {[%clk 0:00:38]}  Ke5 {[%clk 0:01:12]} 64. Nf3+ {[%clk 0:00:38]}  Kd5 {[%clk 0:01:12]} 65. Ng5 {[%clk 0:00:38]}  Rg4 {[%clk 0:01:12]} 66. Nf3 {[%clk 0:00:38]}  Re4+ {[%clk 0:01:12]} 67. Kd3 {[%clk 0:00:38]}  Re8 {[%clk 0:01:12]} 68. Ng5 {[%clk 0:00:38]}  Ke5 {[%clk 0:01:12]} 69. Nf3+ {[%clk 0:00:38]}  Kf4 {[%clk 0:01:12]} 70. Nd4 {[%clk 0:00:38]}  Rd8 {[%clk 0:01:12]} 71. Kc4 {[%clk 0:00:38]}  Ke4 {[%clk 0:01:12]} 72. Nc6 {[%clk 0:00:38]}  Rd5 {[%clk 0:01:12]} 73. Ne7 {[%clk 0:00:38]}  Rd1 {[%clk 0:01:12]} 74. Kc5 {[%clk 0:00:38]}  Rd2 {[%clk 0:01:12]} 75. Nc6 {[%clk 0:00:38]}  Rd5+ {[%clk 0:01:12]} 76. Kc4 {[%clk 0:00:38]}  Rh5 {[%clk 0:01:12]} 77. Ne7 {[%clk 0:00:38]}  Ke5 {[%clk 0:01:12]} 78. Nc6+ {[%clk 0:00:38]}  Ke4 {[%clk 0:01:12]} 79. Ne7 {[%clk 0:00:38]}  Rh1 {[%clk 0:01:12]} 80. Kc5 {[%clk 0:00:38]}  Rc1+ {[%clk 0:01:12]} 81. Kd6 {[%clk 0:00:38]}  Rd1+ {[%clk 0:01:12]} 82. Kc5 {[%clk 0:00:38]}  Rd2 {[%clk 0:01:12]} 83. Nc6 {[%clk 0:03:34]}  Rd7 {[%clk 0:03:57]} 84. Kc4 {[%clk 0:03:34]}  Rd6 {[%clk 0:03:57]} 85. Kc5 {[%clk 0:03:34]}  Re6 {[%clk 0:03:57]} 86. Nd4 {[%clk 0:03:34]}  Re5+ {[%clk 0:03:57]} 87. Kc4 {[%clk 0:03:34]}  Re8 {[%clk 0:03:57]} 88. Nc6 {[%clk 0:03:34]}  Rc8 {[%clk 0:03:57]} 89. Kc5 {[%clk 0:03:34]}  Rxc6+ {[%clk 0:03:57]} 90. Kxc6 {[%clk 0:03:34]}  Ke5 {[%clk 0:03:57]} 1/2-1/2


[Site "http://www.Chess.com"]

[Event "FIDE World Rapid Chess Championship 2021"]
[White "Kadric, Denis"]
[Black "Sindarov, Javokhir"]
[WhiteFideId "14403803"]
[BlackFideId "14205483"]
[WhiteElo "2542"]
[BlackElo "2353"]
[Result "0-1"]
[Round "02"]
[TimeControl "900+10"]
[Date "2021.12.26"]
[WhiteClock "0:01:09"]
[BlackClock "0:02:58"]

1. e4 {[%clk 0:15:00]}  e5 {[%clk 0:15:00]} 2. Nf3 {[%clk 0:15:00]}  Nc6 {[%clk 0:15:00]} 3. Bc4 {[%clk 0:15:00]}  Nf6 {[%clk 0:15:00]} 4. d3 {[%clk 0:15:00]}  h6 {[%clk 0:15:00]} 5. a4 {[%clk 0:15:00]}  d6 {[%clk 0:15:00]} 6. Nc3 {[%clk 0:15:00]}  g6 {[%clk 0:15:00]} 7. h3 {[%clk 0:15:00]}  Bg7 {[%clk 0:15:00]} 8. Be3 {[%clk 0:15:00]}  Be6 {[%clk 0:15:00]} 9. Bxe6 {[%clk 0:15:00]}  fxe6 {[%clk 0:15:00]} 10. Ne2 {[%clk 0:15:00]}  Nh5 {[%clk 0:15:00]} 11. c3 {[%clk 0:15:00]}  O-O {[%clk 0:15:00]} 12. Qd2 {[%clk 0:15:00]}  Kh7 {[%clk 0:15:00]} 13. Nh2 {[%clk 0:15:00]}  d5 {[%clk 0:15:00]} 14. g4 {[%clk 0:15:00]}  Nf4 {[%clk 0:15:00]} 15. Nxf4 {[%clk 0:15:00]}  exf4 {[%clk 0:15:00]} 16. Bxf4 {[%clk 0:15:00]}  Na5 {[%clk 0:15:00]} 17. Rd1 {[%clk 0:15:00]}  Nb3 {[%clk 0:15:00]} 18. Qe3 {[%clk 0:04:10]}  d4 {[%clk 0:06:19]} 19. Qg3 {[%clk 0:04:10]}  Qf6 {[%clk 0:04:21]} 20. Bd2 {[%clk 0:03:14]}  Nxd2 {[%clk 0:04:21]} 21. Rxd2 {[%clk 0:03:14]}  dxc3 {[%clk 0:04:21]} 22. bxc3 {[%clk 0:03:14]}  Qxc3 {[%clk 0:04:21]} 23. Ke2 {[%clk 0:03:14]}  Be5 {[%clk 0:04:21]} 24. Qg2 {[%clk 0:03:14]}  Bf4 {[%clk 0:04:21]} 25. Rhd1 {[%clk 0:03:14]}  Bxd2 {[%clk 0:04:21]} 26. Rxd2 {[%clk 0:03:14]}  a5 {[%clk 0:04:21]} 27. Nf1 {[%clk 0:01:56]}  b5 {[%clk 0:04:49]} 28. Ne3 {[%clk 0:01:56]}  b4 {[%clk 0:04:49]} 29. Rc2 {[%clk 0:01:56]}  Qg7 {[%clk 0:04:49]} 30. Nc4 {[%clk 0:01:56]}  b3 {[%clk 0:04:49]} 31. Rb2 {[%clk 0:01:56]}  Rab8 {[%clk 0:04:49]} 32. e5 {[%clk 0:01:56]}  Rb4 {[%clk 0:04:49]} 33. Qe4 {[%clk 0:01:56]}  Qd7 {[%clk 0:04:04]} 34. h4 {[%clk 0:01:56]}  Qd5 {[%clk 0:04:04]} 35. Ke3 {[%clk 0:01:56]}  Qxe4+ {[%clk 0:02:58]} 36. Kxe4 {[%clk 0:01:09]}  Rfb8 {[%clk 0:02:58]} 37. Kd4 {[%clk 0:01:09]} 0-1


[Site "http://www.Chess.com"]

[Event "FIDE World Rapid Chess Championship 2021"]
[White "Zvjaginsev, Vadim"]
[Black "Nasuta, Grzegorz"]
[WhiteFideId "4113403"]
[BlackFideId "1141686"]
[WhiteElo "2539"]
[BlackElo "2345"]
[Result "1/2-1/2"]
[Round "02"]
[TimeControl "900+10"]
[Date "2021.12.26"]
[WhiteClock "0:00:58"]
[BlackClock "0:00:55"]

1. c4 {[%clk 0:15:00]}  c6 {[%clk 0:15:00]} 2. e4 {[%clk 0:15:00]}  d5 {[%clk 0:15:00]} 3. cxd5 {[%clk 0:15:00]}  cxd5 {[%clk 0:15:00]} 4. exd5 {[%clk 0:15:00]}  Nf6 {[%clk 0:15:00]} 5. Nc3 {[%clk 0:15:00]}  g6 {[%clk 0:15:00]} 6. Bc4 {[%clk 0:15:00]}  Bg7 {[%clk 0:15:00]} 7. Nge2 {[%clk 0:15:00]}  O-O {[%clk 0:15:00]} 8. d4 {[%clk 0:15:00]}  Nbd7 {[%clk 0:15:00]} 9. Nf4 {[%clk 0:15:00]}  a6 {[%clk 0:15:00]} 10. a4 {[%clk 0:15:00]}  b6 {[%clk 0:15:00]} 11. O-O {[%clk 0:15:00]}  Bb7 {[%clk 0:15:00]} 12. Re1 {[%clk 0:15:00]}  b5 {[%clk 0:15:00]} 13. axb5 {[%clk 0:15:00]}  Nb6 {[%clk 0:15:00]} 14. Bf1 {[%clk 0:15:00]}  axb5 {[%clk 0:15:00]} 15. Rxa8 {[%clk 0:15:00]}  Bxa8 {[%clk 0:15:00]} 16. d6 {[%clk 0:15:00]}  Qxd6 {[%clk 0:15:00]} 17. Nxb5 {[%clk 0:15:00]}  Qd7 {[%clk 0:15:00]} 18. Nc3 {[%clk 0:15:00]}  e6 {[%clk 0:15:00]} 19. Be3 {[%clk 0:15:00]}  Nfd5 {[%clk 0:02:09]} 20. Ncxd5 {[%clk 0:08:09]}  Nxd5 {[%clk 0:02:09]} 21. Nxd5 {[%clk 0:08:09]}  Qxd5 {[%clk 0:02:09]} 22. Qd2 {[%clk 0:08:09]}  Rb8 {[%clk 0:02:09]} 23. Rc1 {[%clk 0:08:09]}  h5 {[%clk 0:01:56]} 24. b4 {[%clk 0:06:44]}  Bf8 {[%clk 0:01:56]} 25. Rb1 {[%clk 0:04:25]}  Bc6 {[%clk 0:01:59]} 26. Bf4 {[%clk 0:04:25]}  Rd8 {[%clk 0:01:59]} 27. b5 {[%clk 0:04:25]}  Bb7 {[%clk 0:01:59]} 28. b6 {[%clk 0:04:27]}  Bg7 {[%clk 0:00:00]} 29. Bg5 {[%clk 0:04:27]}  Rd7 {[%clk 0:00:00]} 30. Be3 {[%clk 0:02:35]}  Bxd4 {[%clk 0:00:06]} 31. Bxd4 {[%clk 0:02:35]}  Qxd4 {[%clk 0:00:06]} 32. Qg5 {[%clk 0:02:35]}  Qd5 {[%clk 0:00:06]} 33. Qxd5 {[%clk 0:02:35]}  Rxd5 {[%clk 0:00:06]} 34. g3 {[%clk 0:02:35]}  Kf8 {[%clk 0:00:06]} 35. Bg2 {[%clk 0:02:35]}  Rd7 {[%clk 0:00:06]} 36. Bxb7 {[%clk 0:02:35]}  Rxb7 {[%clk 0:00:06]} 37. Kg2 {[%clk 0:02:35]}  Ke7 {[%clk 0:00:55]} 38. Kf3 {[%clk 0:00:58]}  Kd6 {[%clk 0:00:55]} 39. g4 {[%clk 0:00:58]}  hxg4+ {[%clk 0:00:55]} 40. Kxg4 {[%clk 0:00:58]}  f6 {[%clk 0:00:55]} 41. h4 {[%clk 0:00:58]}  Kc6 {[%clk 0:00:55]} 42. Re1 {[%clk 0:00:58]}  Kd6 {[%clk 0:00:55]} 43. Rb1 {[%clk 0:00:58]}  Kc6 {[%clk 0:00:55]} 44. Re1 {[%clk 0:00:58]} 1/2-1/2


[Site "http://www.Chess.com"]

[Event "FIDE World Rapid Chess Championship 2021"]
[White "Gagunashvili, Merab"]
[Black "Szpar, Milosz"]
[WhiteFideId "13601652"]
[BlackFideId "1184989"]
[WhiteElo "2538"]
[BlackElo "2315"]
[Result "0-1"]
[Round "02"]
[TimeControl "900+10"]
[Date "2021.12.26"]
[WhiteClock "0:00:31"]
[BlackClock "0:01:03"]

1. d4 {[%clk 0:15:00]}  Nf6 {[%clk 0:15:00]} 2. c4 {[%clk 0:15:00]}  e6 {[%clk 0:15:00]} 3. Nc3 {[%clk 0:15:00]}  c5 {[%clk 0:15:00]} 4. d5 {[%clk 0:15:00]}  exd5 {[%clk 0:15:00]} 5. cxd5 {[%clk 0:15:00]}  d6 {[%clk 0:15:00]} 6. e4 {[%clk 0:15:00]}  g6 {[%clk 0:15:00]} 7. f4 {[%clk 0:15:00]}  Bg7 {[%clk 0:15:00]} 8. Bb5+ {[%clk 0:15:00]}  Nfd7 {[%clk 0:15:00]} 9. a4 {[%clk 0:15:00]}  O-O {[%clk 0:15:00]} 10. Nf3 {[%clk 0:15:00]}  Na6 {[%clk 0:15:00]} 11. O-O {[%clk 0:15:00]}  Nb4 {[%clk 0:15:00]} 12. Re1 {[%clk 0:15:00]}  a6 {[%clk 0:15:00]} 13. Bf1 {[%clk 0:15:00]}  Re8 {[%clk 0:15:00]} 14. h3 {[%clk 0:15:00]}  f5 {[%clk 0:15:00]} 15. exf5 {[%clk 0:15:00]}  Rxe1 {[%clk 0:15:00]} 16. Nxe1 {[%clk 0:15:00]}  gxf5 {[%clk 0:15:00]} 17. Be3 {[%clk 0:15:00]}  Nf6 {[%clk 0:15:00]} 18. Nc2 {[%clk 0:15:00]}  Bd7 {[%clk 0:15:00]} 19. Qd2 {[%clk 0:15:00]}  Qe8 {[%clk 0:15:00]} 20. Bf2 {[%clk 0:15:00]}  Qf7 {[%clk 0:15:00]} 21. Ne3 {[%clk 0:15:00]}  Rd8 {[%clk 0:15:00]} 22. Nc4 {[%clk 0:15:00]}  Be8 {[%clk 0:15:00]} 23. Re1 {[%clk 0:15:00]}  b5 {[%clk 0:15:00]} 24. Ne3 {[%clk 0:15:00]}  Ne4 {[%clk 0:15:00]} 25. Nxe4 {[%clk 0:15:00]}  fxe4 {[%clk 0:15:00]} 26. axb5 {[%clk 0:08:24]}  axb5 {[%clk 0:05:27]} 27. Nd1 {[%clk 0:08:24]}  Qxd5 {[%clk 0:05:33]} 28. Qxd5+ {[%clk 0:04:58]}  Nxd5 {[%clk 0:05:33]} 29. Rxe4 {[%clk 0:04:58]}  Bg6 {[%clk 0:05:33]} 30. Re1 {[%clk 0:05:13]}  c4 {[%clk 0:04:37]} 31. g3 {[%clk 0:05:13]}  Nb4 {[%clk 0:04:37]} 32. Nc3 {[%clk 0:05:13]}  Nd3 {[%clk 0:04:37]} 33. Bxd3 {[%clk 0:05:13]}  Bxd3 {[%clk 0:04:37]} 34. Bb6 {[%clk 0:04:29]}  Ra8 {[%clk 0:01:49]} 35. Bc7 {[%clk 0:03:04]}  b4 {[%clk 0:00:58]} 36. Nd5 {[%clk 0:03:04]}  b3 {[%clk 0:00:58]} 37. Nb6 {[%clk 0:00:31]}  Ra2 {[%clk 0:01:03]} 38. Nc8 {[%clk 0:00:31]}  Bd4+ {[%clk 0:01:03]} 39. Kh1 {[%clk 0:00:31]}  Rxb2 {[%clk 0:01:03]} 40. Nxd6 {[%clk 0:00:31]}  Re2 {[%clk 0:01:03]} 0-1


[Site "http://www.Chess.com"]

[Event "FIDE World Rapid Chess Championship 2021"]
[White "Baum, Jonasz"]
[Black "Donchenko, Alexander"]
[WhiteFideId "1195360"]
[BlackFideId "24603295"]
[WhiteElo "2343"]
[BlackElo "2535"]
[Result "0-1"]
[Round "02"]
[TimeControl "900+10"]
[Date "2021.12.26"]
[WhiteClock "0:00:11"]
[BlackClock "0:05:44"]

1. d4 {[%clk 0:15:00]}  Nf6 {[%clk 0:15:00]} 2. c4 {[%clk 0:15:00]}  e6 {[%clk 0:15:00]} 3. Nf3 {[%clk 0:15:00]}  a6 {[%clk 0:15:00]} 4. Nc3 {[%clk 0:15:00]}  d5 {[%clk 0:15:00]} 5. cxd5 {[%clk 0:15:00]}  exd5 {[%clk 0:15:00]} 6. Bg5 {[%clk 0:15:00]}  Be6 {[%clk 0:15:00]} 7. Qb3 {[%clk 0:15:00]}  Nbd7 {[%clk 0:15:00]} 8. Qxb7 {[%clk 0:15:00]}  Rb8 {[%clk 0:15:00]} 9. Qxa6 {[%clk 0:15:00]}  Rxb2 {[%clk 0:15:00]} 10. Qd3 {[%clk 0:15:00]}  c5 {[%clk 0:15:00]} 11. Rb1 {[%clk 0:15:00]}  c4 {[%clk 0:15:00]} 12. Qd1 {[%clk 0:15:00]}  Bb4 {[%clk 0:15:00]} 13. Bd2 {[%clk 0:15:00]}  Rxd2 {[%clk 0:15:00]} 14. Qxd2 {[%clk 0:15:00]}  Ne4 {[%clk 0:15:00]} 15. Rxb4 {[%clk 0:15:00]}  Nxd2 {[%clk 0:15:00]} 16. Kxd2 {[%clk 0:15:00]}  Nf6 {[%clk 0:15:00]} 17. e3 {[%clk 0:15:00]}  Qa5 {[%clk 0:15:00]} 18. a3 {[%clk 0:15:00]}  Ne4+ {[%clk 0:11:59]} 19. Nxe4 {[%clk 0:00:18]}  dxe4 {[%clk 0:11:59]} 20. Ne1 {[%clk 0:00:18]}  Qxa3 {[%clk 0:07:43]} 21. Nc2 {[%clk 0:00:19]}  Qa5 {[%clk 0:07:43]} 22. Kc3 {[%clk 0:00:19]}  O-O {[%clk 0:07:43]} 23. Be2 {[%clk 0:00:19]}  Qf5 {[%clk 0:05:36]} 24. f4 {[%clk 0:00:19]}  exf3 {[%clk 0:05:36]} 25. gxf3 {[%clk 0:00:19]}  Qh3 {[%clk 0:05:36]} 26. Rhb1 {[%clk 0:00:19]}  Qxh2 {[%clk 0:05:36]} 27. Bf1 {[%clk 0:00:19]}  Qf2 {[%clk 0:05:36]} 28. f4 {[%clk 0:00:19]}  Bf5 {[%clk 0:05:36]} 29. R4b2 {[%clk 0:00:19]}  Bxc2 {[%clk 0:05:36]} 30. Rxc2 {[%clk 0:00:19]}  Qxe3+ {[%clk 0:05:36]} 31. Kxc4 {[%clk 0:00:19]}  Rc8+ {[%clk 0:05:36]} 32. Kd5 {[%clk 0:00:19]}  Rd8+ {[%clk 0:05:36]} 33. Kc6 {[%clk 0:00:11]}  Qe4+ {[%clk 0:05:44]} 34. Kc7 {[%clk 0:00:11]}  Qxc2+ {[%clk 0:05:44]} 0-1


[Site "http://www.Chess.com"]